[Event "GER-ch Youth-U14 2022"]
[Site "Willingen"]
[Date "2022.06.08"]
[Round "6.11"]
[White "Luebke, Florentin"]
[Black "Winkler, Yonathan"]
[Result "1-0"]
[ECO "B07"]
[WhiteElo "1613"]
[BlackElo "1699"]
[Annotator "NA RC COMBH"]
[PlyCount "85"]
[EventDate "2022.06.05"]
[EventType "swiss"]
[EventRounds "9"]
[EventCountry "GER"]
[SourceTitle "playchess.com"]
[Source "ChessBase"]
[SourceQuality "1"]
[TimeControl "40/4500+30:900+30"]

1. e4 {[%emt 0:00:00]} d6 {[%emt 0:00:00]} 2. d4 {[%emt 0:00:00]} Nf6 {[%emt 0:00:00]} 3. Nc3 {[%emt 0:00:00]} Nbd7 {[%emt 0:00:00]} 4. Be3 {[%emt 0:00:00]} e5 {[%emt 0:00:00]} 5. d5 {[%emt 0:00:00]} c6 {[%emt 0:00:00]} 6. dxc6 {[%emt 0:00:00]} bxc6 {[%emt 0:00:00]} 7. Bc4 {[%emt 0:00:00]} Qc7 {[%emt 0:00:00]} 8. f3 {[%emt 0:00:00]} Be7 {[%emt 0:00:00]} 9. Qd2 {[%emt 0:00:00]} Rb8 {[%emt 0:00:00]} 10. Bb3 {[%emt 0:00:00]} h6 {[%emt 0:00:00]} 11. Nge2 {[%emt 0:00:00]} Nf8 {[%emt 0:00:00]} 12. g4 {[%emt 0:00:24]} g5 {[%emt 0:06:25]} 13. Ng3 {[%emt 0:08:43]} Ng6 {[%emt 0:02:02]} 14. O-O-O {[%emt 0:03:03]} Qb7 {[%emt 0:05:59]} 15. Nf5 {[%emt 0:05:46]} Bxf5 {[%emt 0:03:19]} 16. gxf5 {[%emt 0:01:11]} Nf4 {[%emt 0:11:33]} 17. h4 {[%emt 0:02:52]} Rg8 {[%emt 0:03:45]} 18. hxg5 {[%emt 0:04:04]} hxg5 {[%emt 0:01:01]} 19. Rh6 {[%emt 0:06:31]} Qd7 {[%emt 0:08:41]} 20. Kb1 {[%emt 0:03:48]} Rd8 {[%emt 0:07:02]} 21. Ba4 {[%emt 0:01:27]} Qb7 {[%emt 0:07:15]} 22. Bxf4 {[%emt 0:03:30]} gxf4 {[%emt 0:00:33]} 23. Nd5 {[%emt 0:01:14]} Rb8 {[%emt 0:08:38]} 24. Bxc6+ {[%emt 0:02:26]} Qxc6 {[%emt 0:00:20]} 25. Nxf6+ {[%emt 0:00:13]} Bxf6 {[%emt 0:00:06]} 26. Rxf6 {[%emt 0:00:23]} Rb6 {[%emt 0:00:10]} 27. b3 {[%emt 0:01:22]} Ke7 {[%emt 0:00:33]} 28. Qh2 {[%emt 0:02:06]} Rc8 {[%emt 0:07:50]} 29. Rh6 {[%emt 0:02:59]} Qc3 {[%emt 0:02:38]} 30. f6+ {[%emt 0:13:11]} Kd7 {[%emt 0:00:06]} 31. Rh7 {[%emt 0:02:16]} Qc4 {[%emt 0:05:44]} 32. Rd5 {[%emt 0:02:33]} Rf8 {[%emt 0:02:30]} 33. Qh5 {[%emt 0:00:25]} Ke8 {[%emt 0:00:57]} 34. Qh6 {[%emt 0:00:15]} Qf1+ {[%emt 0:01:26]} 35. Kb2 {[%emt 0:00:09]} Rg8 {[%emt 0:00:04]} 36. Qh5 {[%emt 0:00:37]} Rf8 {[%emt 0:00:47]} 37. Rxe5+ {[%emt 0:05:09]} dxe5 {[%emt 0:01:25]} 38. Qxe5+ {[%emt 0:00:08]} Kd7 {[%emt 0:00:17]} 39. Qe7+ {[%emt 0:00:17]} Kc6 {[%emt 0:00:06]} 40. Qxf8 {[%emt 0:00:53]} Qf2 {[%emt 0:00:06]} 41. Qc8+ {[%emt 0:15:24]} Kd6 {[%emt 0:15:15]} 42. Qd8+ {[%emt 0:00:22]} Kc6 {[%emt 0:00:15]} 43. Qd5+ {[%emt 0:00:08]} 1-0

[Event "GER-ch Youth-U14 2022"]
[Site "Willingen"]
[Date "2022.06.08"]
[Round "6.12"]
[White "Torosyan, Bagrat"]
[Black "Sauer, Tim"]
[Result "1-0"]
[ECO "B35"]
[WhiteElo "1683"]
[BlackElo "1769"]
[Annotator "NA RC COMBH"]
[PlyCount "87"]
[EventDate "2022.06.05"]
[EventType "swiss"]
[EventRounds "9"]
[EventCountry "GER"]
[SourceTitle "playchess.com"]
[Source "ChessBase"]
[SourceQuality "1"]
[TimeControl "40/4500+30:900+30"]

1. e4 {[%emt 0:00:00]} c5 {[%emt 0:00:00]} 2. Nf3 {[%emt 0:00:00]} g6 {[%emt 0:00:00]} 3. d4 {[%emt 0:00:00]} cxd4 {[%emt 0:00:00]} 4. Nxd4 {[%emt 0:00:00]} Bg7 {[%emt 0:00:00]} 5. Nc3 {[%emt 0:00:00]} Nc6 {[%emt 0:00:00]} 6. Be3 {[%emt 0:00:00]} Nf6 {[%emt 0:00:00]} 7. Bc4 {[%emt 0:00:00]} Qa5 {[%emt 0:00:00]} 8. O-O {[%emt 0:00:00]} O-O {[%emt 0:00:00]} 9. Bb3 {[%emt 0:00:00]} d6 {[%emt 0:00:00]} 10. h3 {[%emt 0:00:00]} Bd7 {[%emt 0:00:00]} 11. Re1 {[%emt 0:00:00]} Nxd4 {[%emt 0:00:00]} 12. Bxd4 {[%emt 0:00:00]} Bc6 {[%emt 0:00:00]} 13. Nd5 {[%emt 0:00:00]} Bxd5 {[%emt 0:01:21]} 14. exd5 {[%emt 0:00:00]} Rfe8 {[%emt 0:00:10]} 15. c3 {[%emt 0:00:00]} Rac8 {[%emt 0:01:23]} 16. Qf3 {[%emt 0:00:00]} b5 {[%emt 0:02:49]} 17. Re2 {[%emt 0:00:00]} Nd7 {[%emt 0:05:57]} 18. Rae1 {[%emt 0:00:00]} Ne5 {[%emt 0:01:43]} 19. Qg3 {[%emt 0:00:00]} Qc7 {[%emt 0:02:43]} 20. f4 {[%emt 0:06:45]} Nc4 {[%emt 0:00:20]} 21. Qh4 {[%emt 0:00:31]} f6 {[%emt 0:07:11]} 22. Qg4 {[%emt 0:01:41]} Rb8 {[%emt 0:07:58]} 23. h4 {[%emt 0:03:00]} Rb7 {[%emt 0:07:09]} 24. h5 {[%emt 0:08:30]} Kf7 {[%emt 0:02:34]} 25. hxg6+ {[%emt 0:11:19]} hxg6 {[%emt 0:00:11]} 26. Qe6+ {[%emt 0:00:19]} Kf8 {[%emt 0:00:06]} 27. Bc2 {[%emt 0:00:17]} Qd7 {[%emt 0:01:36]} 28. Bxg6 {[%emt 0:00:21]} Qxe6 {[%emt 0:00:03]} 29. Rxe6 {[%emt 0:00:09]} Rc8 {[%emt 0:00:23]} 30. g4 {[%emt 0:01:29]} Bh6 {[%emt 0:01:05]} 31. g5 {[%emt 0:03:00]} fxg5 {[%emt 0:03:45]} 32. Bf5 {[%emt 0:00:16]} Bg7 {[%emt 0:00:27]} 33. Bxg7+ {[%emt 0:00:21]} Kxg7 {[%emt 0:00:14]} 34. Rg6+ {[%emt 0:00:14]} Kf7 {[%emt 0:00:12]} 35. Bxc8 {[%emt 0:00:11]} Rc7 {[%emt 0:00:21]} 36. Bf5 {[%emt 0:00:10]} gxf4 {[%emt 0:00:15]} 37. Rg2 {[%emt 0:00:50]} Ne3 {[%emt 0:00:19]} 38. Be6+ {[%emt 0:00:55]} Kf6 {[%emt 0:00:08]} 39. Rg8 {[%emt 0:01:13]} Rb7 {[%emt 0:00:31]} 40. Kf2 {[%emt 0:01:12]} b4 {[%emt 0:00:41]} 41. Kf3 {[%emt 0:17:46]} bxc3 {[%emt 0:15:08]} 42. Rf8+ {[%emt 0:00:09]} Kg6 {[%emt 0:00:41]} 43. Rg1+ {[%emt 0:00:10]} Kh7 {[%emt 0:00:11]} 44. Rxf4 {[%emt 0:00:16]} 1-0

[Event "GER-ch Youth-U14 2022"]
[Site "Willingen"]
[Date "2022.06.08"]
[Round "6.13"]
[White "Schwan, Aaron"]
[Black "Weyerer, Noah"]
[Result "1/2-1/2"]
[ECO "C00"]
[WhiteElo "1671"]
[BlackElo "1555"]
[Annotator "NA RC COMBH"]
[PlyCount "57"]
[EventDate "2022.06.05"]
[EventType "swiss"]
[EventRounds "9"]
[EventCountry "GER"]
[SourceTitle "playchess.com"]
[Source "ChessBase"]
[SourceQuality "1"]
[TimeControl "40/4500+30:900+30"]

1. e4 {[%emt 0:00:00]} e6 {[%emt 0:00:00]} 2. d4 {[%emt 0:00:00]} d5 {[%emt 0:00:00]} 3. Bd3 {[%emt 0:00:00]} Nf6 {[%emt 0:00:00]} 4. e5 {[%emt 0:00:00]} Nfd7 {[%emt 0:00:00]} 5. c3 {[%emt 0:00:00]} c5 {[%emt 0:00:00]} 6. f4 {[%emt 0:00:00]} Nc6 {[%emt 0:00:00]} 7. Nf3 {[%emt 0:00:00]} Qb6 {[%emt 0:00:00]} 8. Bc2 {[%emt 0:00:00]} Be7 {[%emt 0:00:00]} 9. O-O {[%emt 0:00:00]} O-O {[%emt 0:02:24]} 10. a3 {[%emt 0:00:00]} f6 {[%emt 0:06:51]} 11. Kh1 {[%emt 0:00:00]} c4 {[%emt 0:01:55]} 12. Rg1 {[%emt 0:05:30]} Qc7 {[%emt 0:02:19]} 13. g4 {[%emt 0:08:40]} b5 {[%emt 0:07:04]} 14. Qf1 fxe5 {[%emt 0:10:07]} 15. fxe5 {[%emt 0:07:29]} Qd8 {[%emt 0:08:27]} 16. Qh3 {[%emt 0:07:06]} g6 {[%emt 0:04:25]} 17. Nbd2 {[%emt 0:05:42]} Rf7 {[%emt 0:05:28]} 18. Nf1 {[%emt 0:04:36]} Bb7 {[%emt 0:05:49]} 19. Ne3 {[%emt 0:02:56]} Ncxe5 {[%emt 0:07:10]} 20. Nxe5 {[%emt 0:02:27]} Nxe5 {[%emt 0:01:14]} 21. dxe5 {[%emt 0:00:20]} d4+ {[%emt 0:00:44]} 22. Ng2 {[%emt 0:00:50]} d3 {[%emt 0:00:31]} 23. Bxd3 {[%emt 0:11:44]} cxd3 {[%emt 0:00:35]} 24. Be3 {[%emt 0:00:41]} Rf3 {[%emt 0:04:30]} 25. Qh6 {[%emt 0:00:07]} Bf8 {[%emt 0:08:15]} 26. Qg5 {[%emt 0:00:29]} Be7 {[%emt 0:05:00]} 27. Qh6 {[%emt 0:00:09]} Bf8 {[%emt 0:00:28]} 28. Qg5 {[%emt 0:02:05]} Be7 {[%emt 0:01:05]} 29. Qh6 {[%emt 0:01:48]} 1/2-1/2

[Event "GER-ch Youth-U14 2022"]
[Site "Willingen"]
[Date "2022.06.08"]
[Round "6.14"]
[White "Braeutigam, Alexander"]
[Black "Uhlmann, Tim"]
[Result "1/2-1/2"]
[ECO "D32"]
[WhiteElo "1749"]
[BlackElo "1776"]
[Annotator "NA RC COMBH"]
[PlyCount "85"]
[EventDate "2022.06.05"]
[EventType "swiss"]
[EventRounds "9"]
[EventCountry "GER"]
[SourceTitle "playchess.com"]
[Source "ChessBase"]
[SourceQuality "1"]
[TimeControl "40/4500+30:900+30"]

1. d4 {[%emt 0:00:00]} d5 {[%emt 0:00:00]} 2. c4 {[%emt 0:00:00]} e6 {[%emt 0:00:00]} 3. Nc3 {[%emt 0:00:00]} c5 {[%emt 0:00:00]} 4. cxd5 {[%emt 0:00:00]} exd5 {[%emt 0:00:00]} 5. Nf3 {[%emt 0:00:00]} Nc6 {[%emt 0:00:00]} 6. dxc5 {[%emt 0:00:00]} d4 {[%emt 0:00:00]} 7. Na4 {[%emt 0:00:00]} Bxc5 {[%emt 0:00:00]} 8. Nxc5 {[%emt 0:00:00]} Qa5+ {[%emt 0:00:00]} 9. Qd2 {[%emt 0:00:00]} Qxc5 {[%emt 0:00:00]} 10. e3 {[%emt 0:00:00]} dxe3 {[%emt 0:00:00]} 11. Qxe3+ {[%emt 0:00:00]} Qxe3+ {[%emt 0:00:00]} 12. Bxe3 {[%emt 0:00:00]} Nf6 {[%emt 0:00:00]} 13. Bb5 {[%emt 0:00:00]} Bd7 {[%emt 0:00:22]} 14. O-O {[%emt 0:00:00]} O-O {[%emt 0:00:32]} 15. h3 {[%emt 0:00:00]} a6 {[%emt 0:00:44]} 16. Be2 {[%emt 0:00:00]} Nd5 {[%emt 0:07:26]} 17. Bc5 {[%emt 0:00:49]} Rfe8 {[%emt 0:01:59]} 18. Bc4 {[%emt 0:00:20]} Nf4 {[%emt 0:05:33]} 19. Rfe1 {[%emt 0:06:25]} Be6 {[%emt 0:09:09]} 20. Bxe6 {[%emt 0:00:50]} Nxe6 {[%emt 0:00:06]} 21. Bb6 {[%emt 0:01:31]} Re7 {[%emt 0:02:54]} 22. Re2 {[%emt 0:02:06]} Rae8 {[%emt 0:03:39]} 23. Rae1 {[%emt 0:02:35]} f6 {[%emt 0:12:14]} 24. Nd2 {[%emt 0:07:55]} Nf4 {[%emt 0:04:48]} 25. Rxe7 {[%emt 0:00:39]} Rxe7 {[%emt 0:00:04]} 26. Rxe7 {[%emt 0:00:13]} Nxe7 {[%emt 0:00:04]} 27. Nc4 {[%emt 0:00:40]} Ned5 {[%emt 0:00:35]} 28. Bc5 {[%emt 0:07:02]} Nd3 {[%emt 0:00:58]} 29. Bd4 {[%emt 0:00:30]} N5b4 {[%emt 0:00:31]} 30. a3 {[%emt 0:01:09]} Nc6 {[%emt 0:01:49]} 31. Bc3 {[%emt 0:00:10]} b5 {[%emt 0:00:11]} 32. Nd6 {[%emt 0:02:19]} b4 {[%emt 0:01:53]} 33. axb4 {[%emt 0:00:11]} Ncxb4 {[%emt 0:00:49]} 34. Bxb4 {[%emt 0:20:17]} Nxb4 {[%emt 0:00:12]} 35. Kf1 {[%emt 0:00:17]} Nd3 {[%emt 0:05:08]} 36. Nc4 {[%emt 0:01:43]} Kf7 {[%emt 0:03:43]} 37. Ke2 {[%emt 0:00:20]} Nf4+ {[%emt 0:00:23]} 38. Kf3 {[%emt 0:00:24]} g5 {[%emt 0:01:14]} 39. h4 {[%emt 0:02:15]} Ke6 {[%emt 0:04:17]} 40. g3 {[%emt 0:00:46]} Nd3 {[%emt 0:03:45]} 41. hxg5 {[%emt 0:16:22]} fxg5 {[%emt 0:15:26]} 42. Ke3 {[%emt 0:00:30]} Nb4 {[%emt 0:01:27]} 43. Ke4 {[%emt 0:01:21]} 1/2-1/2

[Event "GER-ch Youth-U14 2022"]
[Site "Willingen"]
[Date "2022.06.08"]
[Round "6.15"]
[White "Sinka, Silas"]
[Black "Huber, Benedikt"]
[Result "0-1"]
[ECO "D31"]
[WhiteElo "1386"]
[BlackElo "2288"]
[Annotator "TA"]
[PlyCount "140"]
[EventDate "2022.06.05"]
[EventType "swiss"]
[EventRounds "9"]
[EventCountry "GER"]
[SourceTitle "playchess.com"]
[Source "ChessBase"]
[SourceQuality "1"]
[TimeControl "40/4500+30:900+30"]

{[%evp 13,140,20,30,-24,-1,0,26,18,33,0,0,-71,-75,-61,-85,-94,-99,-94,-89,-91,-93,-82,-53,-97,-33,-45,-48,-66,-40,-124,-115,-134,-124,-226,-131,-140,-141,-135,-118,-141,-29,-14,-11,-70,0,0,0,0,0,0,0,0,0,-107,-101,-101,-94,-110,-110,-102,-94,-94,-94,-115,-58,-67,-43,-71,-12,-12,-12,-12,-12,-12,-12,-12,-10,-26,-26,-100,-100,-100,0,-100,-100,-100,-100,-316,-225,-225,-225,-225,-150,-191,-205,-225,-214,-220,-227,-400,-362,-2389,-2225,-2615,-2853,-1599,-1226,-29980,-29981,-29981,-29980,-29985,-29986,-29988,-29989,-29989,-29990,-29991,-29990,-29992,-29990,-29991,-29985,-29989,-29985,-29985,-29986,-29986,-29987]} 1. d4 {[%emt 0:00:00]} d5 {[%emt 0:00:00]} 2. c4 {[%emt 0:00:00]} e6 {[%emt 0:00:00]} 3. Nc3 {[%emt 0:00:00]} Be7 {[%emt 0:00:00]} 4. Bf4 {[%emt 0:00:00]} Nf6 {[%emt 0:00:00]} 5. e3 {[%emt 0:00:00]} Nbd7 {[%emt 0:00:00]} 6. Nf3 {[%emt 0:00:00]} O-O {[%emt 0:00:00] 6...0-0 is better than 6...c6.} 7. Qc2 {[%emt 0:00:00]} a6 {[%emt 0:00:00]} 8. h3 {[%emt 0:00:00] D37: Queen's Gambit Declined: 5 Bf4.} (8. Rd1 $142) 8... c5 {[%emt 0:00:00]} 9. cxd5 {[%emt 0:00:00]} exd5 {[%emt 0:00:00]} 10. Be2 {[%emt 0:00:00] [#] White has an edge.} c4 $146 {[%emt 0:00:00]} ({Predecessor:} 10... b5 11. a3 Bb7 12. dxc5 Nxc5 13. O-O Rc8 14. Rad1 Nce4 15. Be5 b4 16. axb4 Bxb4 {1-0 (29) Ganner,T (1462)-Wiggins,A (1702) Amersham 2012}) 11. O-O {[%emt 0:00:00]} b5 $1 {[%emt 0:04:48]} 12. e4 {[%emt 0:00:00]} (12. a3 $11) 12... dxe4 $17 {[%emt 0:01:13]} 13. Nxe4 {[%emt 0:00:00]} Bb7 {[%emt 0:01:43]} 14. Nd6 {[%emt 0:02:00]} Bxd6 {[%emt 0:01:42]} 15. Bxd6 {[%emt 0:00:07]} Re8 {[%emt 0:00:08]} 16. Rad1 {[%emt 0:02:22]} Qb6 {[%emt 0:03:06]} 17. Bh2 {[%emt 0:02:22]} Nd5 {[%emt 0:03:59]} 18. a3 {[%emt 0:09:11]} (18. Ng5 Qh6 19. Nf3 Nb4 $17) 18... N7f6 {[%emt 0:09:15] Black is more active. Pair of Knights!} (18... Nf8 $17) 19. Ne5 $15 {[%emt 0:01:28]} Rac8 {[%emt 0:01:54]} 20. Bf3 {[%emt 0:10:45]} a5 {[%emt 0:08:57]} 21. Bxd5 {[%emt 0:01:59]} (21. Ng4 $15) 21... Nxd5 $17 {[%emt 0:01:50]} 22. Nd7 {[%emt 0:00:44]} (22. Qf5 $2 f6 23. Nf3 c3 24. bxc3 Nxc3 $19) 22... Qc6 {[%emt 0:00:47]} 23. Nc5 {[%emt 0:00:26]} (23. Ne5 $17 Qe6 24. Rfe1) 23... Nb4 {[%emt 0:00:46]} 24. d5 {[%emt 0:02:58]} Nxd5 {[%emt 0:01:05]} 25. Nxb7 {[%emt 0:00:36]} Qxb7 {[%emt 0:00:08]} 26. Rd4 {[%emt 0:01:14]} Rcd8 {[%emt 0:05:05]} ({Black should play} 26... c3 $17 {aiming for ...b4.} 27. Bd6 Qc6) 27. Rfd1 $11 {[%emt 0:01:32]} Rd7 $40 {[%emt 0:00:46][%cal Od7e7][%mdl 128] Black attacks.} 28. Qf5 {[%emt 0:11:55] [#]} (28. Bg3 $1 $11) 28... Nf6 {[%emt 0:07:50]} (28... g6 29. Qf3) (28... Qc6 $1 $15) 29. Rxd7 {[%emt 0:03:50]} Nxd7 {[%emt 0:00:42]} 30. Bf4 {[%emt 0:03:46]} ({Of course not} 30. a4 bxa4 $1 31. Bg3 Nf6 32. Qxa5 Qxb2 33. Qxa4 Qe2 $17) 30... Nf6 {[%emt 0:02:40]} 31. Bg5 {[%emt 0:02:58]} Qc6 {[%emt 0:12:03]} 32. Bxf6 {[%emt 0:05:51]} gxf6 {[%emt 0:03:20][%mdl 4096] Endgame KQR-KQR} 33. Kf1 {[%emt 0:11:40]} (33. Rd5 $11) 33... Re5 $17 {[%emt 0:05:39]} 34. Qd7 {[%emt 0:07:55]} Qe4 {[%emt 0:06:11]} 35. Qg4+ {[%emt 0:03:26]} Qxg4 {[%emt 0:00:09]} 36. hxg4 {[%emt 0:00:04][%cal Oa3a4] KR-KR} a4 {[%emt 0:00:03]} 37. Rd8+ {[%emt 0:01:08]} Kg7 {[%emt 0:00:08]} 38. Rb8 {[%emt 0:00:06]} Kh6 {[%emt 0:04:08]} (38... f5 $17 39. gxf5 Rxf5) 39. f4 $15 {[%emt 0:01:25]} Rc5 {[%emt 0:00:57]} 40. Rb6 {[%emt 0:00:31]} c3 {[%emt 0:02:12]} ({Better is} 40... Kg6 $17) 41. bxc3 $11 {[%emt 0:16:32]} Kg7 {[%emt 0:16:47]} ({Much worse is} 41... Rxc3 $6 42. Rxf6+ Kg7 43. Rf5 $17) 42. Kf2 {[%emt 0:01:37]} Rxc3 {[%emt 0:00:00]} 43. Rxb5 {[%emt 0:00:00]} Rxa3 {[%emt 0:00:00]} 44. Ra5 {[%emt 0:00:00]} Kg6 {[%emt 0:00:00]} 45. Ke2 {[%emt 0:00:00]} Ra1 {[%emt 0:00:00]} 46. Kf2 {[%emt 0:00:00]} (46. Ke3 $11) 46... Kg7 {[%emt 0:00:00]} 47. Kg3 {[%emt 0:00:00]} h6 {[%emt 0:00:00]} (47... a3 $17 {And now ...a2 would win.} 48. Ra6 a2) 48. Kf2 {[%emt 0:00:00]} (48. f5 $11 {keeps the balance.}) 48... a3 $17 {[%emt 0:00:00]} 49. Kg3 {[%emt 0:00:00] [#]} Kf8 $1 {[%emt 0:00:00]} 50. g5 $2 {[%emt 0:00:00] Loses the game.} (50. Ra8+ $17 Ke7 51. Ra7+ Ke6 52. f5+ Kd6 53. Rxf7) 50... hxg5 {[%emt 0:00:00]} 51. fxg5 {[%emt 0:00:00]} fxg5 {[%emt 0:00:00]} 52. Rxg5 {[%emt 0:00:00]} Ra2 {[%emt 0:00:00]} 53. Ra5 {[%emt 0:00:00]} Ke7 {[%emt 0:00:00]} 54. Kf4 {[%emt 0:00:00]} Kd6 {[%emt 0:00:00]} 55. g4 {[%emt 0:00:00]} f6 {[%emt 0:00:00]} 56. Kf5 $2 {[%emt 0:00:00]} (56. Kg3 {was worth a try.}) 56... Rf2+ $19 {[%emt 0:00:00]} 57. Kg6 $2 {[%emt 0:00:00]} (57. Ke4 a2 58. Ke3) 57... a2 {[%emt 0:00:00]} 58. Ra6+ {[%emt 0:00:00]} Kc5 {[%emt 0:00:00] ...Kb4 is the strong threat.} 59. Ra5+ {[%emt 0:00:00]} Kb4 {[%emt 0:00:00]} 60. Rxa2 {[%emt 0:00:00]} Rxa2 {[%emt 0:00:00] Black mates.} 61. Kxf6 {[%emt 0:00:00] KR-KP} Rf2+ {[%emt 0:00:00]} 62. Kg6 {[%emt 0:00:00]} Kc5 {[%emt 0:00:00]} 63. g5 {[%emt 0:00:00]} Kd6 {[%emt 0:00:00]} 64. Kh7 {[%emt 0:00:00]} Rh2+ {[%emt 0:00:00]} 65. Kg7 {[%emt 0:00:00]} Ke7 {[%emt 0:00:00]} 66. g6 {[%emt 0:00:00]} Ra2 {[%emt 0:00:00]} 67. Kh8 {[%emt 0:02:35]} Ra8+ {[%emt 0:00:00]} 68. Kg7 {[%emt 0:00:07]} Ke6 {[%emt 0:00:00]} 69. Kh7 {[%emt 0:00:24]} Kf6 {[%emt 0:00:00]} 70. g7 {[%emt 0:00:16] [#]} Kf7 $1 {[%emt 0:00:00] Weighted Error Value: White=0.56/Black=0.20 (precise)} ({And not} 70... Ra7 71. Kh8 Rxg7 $11) 0-1

[Event "GER-ch Youth-U14 2022"]
[Site "Willingen"]
[Date "2022.06.08"]
[Round "6.16"]
[White "Kieselbach, Jannik"]
[Black "Goepfert, Gregor"]
[Result "1-0"]
[ECO "C44"]
[WhiteElo "1631"]
[BlackElo "1446"]
[Annotator "NA RC COMBH"]
[PlyCount "162"]
[EventDate "2022.06.05"]
[EventType "swiss"]
[EventRounds "9"]
[EventCountry "GER"]
[SourceTitle "playchess.com"]
[Source "ChessBase"]
[SourceQuality "1"]
[TimeControl "40/4500+30:900+30"]

1. e4 {[%emt 0:00:00]} e5 {[%emt 0:00:00]} 2. Nf3 {[%emt 0:00:00]} Nc6 {[%emt 0:00:00]} 3. d4 {[%emt 0:00:00]} exd4 {[%emt 0:00:00]} 4. Nxd4 {[%emt 0:00:00]} Bb4+ {[%emt 0:00:00]} 5. c3 {[%emt 0:00:00]} Bc5 {[%emt 0:00:00]} 6. Be3 {[%emt 0:00:00]} Bb6 {[%emt 0:00:00]} 7. Bc4 {[%emt 0:00:00]} Nf6 {[%emt 0:00:00]} 8. Nd2 {[%emt 0:00:00]} O-O {[%emt 0:00:00]} 9. O-O {[%emt 0:00:00]} d6 {[%emt 0:00:00]} 10. f3 {[%emt 0:00:00]} Nd7 {[%emt 0:00:00]} 11. Bf2 {[%emt 0:00:00]} Nce5 {[%emt 0:00:00]} 12. Be2 {[%emt 0:00:00]} Nc5 {[%emt 0:00:00]} 13. Nc4 {[%emt 0:00:00]} Nxc4 {[%emt 0:00:00]} 14. Bxc4 {[%emt 0:00:00]} Kh8 {[%emt 0:02:41]} 15. Qc2 {[%emt 0:06:54]} Be6 {[%emt 0:10:42]} 16. Nxe6 {[%emt 0:00:36]} Nxe6 {[%emt 0:00:21]} 17. Bxe6 {[%emt 0:15:49]} fxe6 {[%emt 0:00:12]} 18. c4 {[%emt 0:00:55]} Qg5 {[%emt 0:05:54]} 19. Bxb6 {[%emt 0:08:07]} axb6 {[%emt 0:00:25]} 20. a3 {[%emt 0:04:16]} Ra5 {[%emt 0:05:06]} 21. Qc3 {[%emt 0:01:35]} Qg6 {[%emt 0:05:55]} 22. Rae1 {[%emt 0:01:29]} Rg5 {[%emt 0:02:35]} 23. Rf2 {[%emt 0:01:18]} e5 {[%emt 0:01:01]} 24. a4 {[%emt 0:02:04]} Qe6 {[%emt 0:09:10]} 25. b3 {[%emt 0:00:56]} Rg6 {[%emt 0:04:10]} 26. a5 {[%emt 0:01:13]} bxa5 {[%emt 0:00:19]} 27. Qxa5 {[%emt 0:00:37]} b6 {[%emt 0:05:18]} 28. Qa7 {[%emt 0:03:40]} Qd7 {[%emt 0:03:29]} 29. Qb7 {[%emt 0:03:56]} h5 {[%emt 0:02:47]} 30. Kh1 {[%emt 0:07:47]} h4 {[%emt 0:01:25]} 31. Qd5 {[%emt 0:05:05]} h3 {[%emt 0:01:11]} 32. g3 {[%emt 0:00:16]} Rgf6 {[%emt 0:00:56]} 33. Ref1 {[%emt 0:00:46]} Qe8 {[%emt 0:07:07]} 34. f4 {[%emt 0:01:58]} Qg6 {[%emt 0:03:08]} 35. f5 {[%emt 0:01:35]} Qg4 {[%emt 0:01:00]} 36. Qd3 {[%emt 0:00:56]} g6 {[%emt 0:03:28]} 37. Qf3 {[%emt 0:00:20]} Qxf3+ {[%emt 0:00:55]} 38. Rxf3 {[%emt 0:00:08]} gxf5 {[%emt 0:00:37]} 39. exf5 {[%emt 0:01:12]} e4 {[%emt 0:00:28]} 40. Rf4 {[%emt 0:00:47]} e3 {[%emt 0:01:38]} 41. g4 {[%emt 0:15:43]} e2 {[%emt 0:17:12]} 42. Re1 {[%emt 0:00:11]} Re6 {[%emt 0:00:44]} 43. Rf3 {[%emt 0:05:00]} Kg7 {[%emt 0:01:15]} 44. Rxh3 {[%emt 0:00:42]} Re4 {[%emt 0:01:02]} 45. Rg3 {[%emt 0:00:33]} Kf6 {[%emt 0:01:40]} 46. Kg2 {[%emt 0:02:13]} Kg5 {[%emt 0:00:51]} 47. h3 {[%emt 0:01:20]} b5 {[%emt 0:02:02]} 48. cxb5 {[%emt 0:12:51]} d5 {[%emt 0:01:38]} 49. Kf2 {[%emt 0:00:00]} Rfe8 {[%emt 0:00:00]} 50. Rf3 {[%emt 0:00:00]} Kf6 {[%emt 0:00:00]} 51. g5+ {[%emt 0:00:00]} Kxg5 {[%emt 0:00:00]} 52. f6 {[%emt 0:00:00]} Rf4 {[%emt 0:00:00]} 53. Rxf4 {[%emt 0:00:00]} Kxf4 {[%emt 0:00:00]} 54. Rxe2 {[%emt 0:00:00]} Rf8 {[%emt 0:00:00]} 55. Re6 {[%emt 0:00:00]} Kf5 {[%emt 0:00:00]} 56. Rc6 {[%emt 0:00:00]} d4 {[%emt 0:00:00]} 57. Ke2 {[%emt 0:00:00]} Ke4 {[%emt 0:00:00]} 58. Kd2 {[%emt 0:00:00]} Rf7 {[%emt 0:00:00]} 59. h4 {[%emt 0:00:00]} Rh7 {[%emt 0:00:00]} 60. Re6+ {[%emt 0:00:00]} Kd5 {[%emt 0:00:00]} 61. Re7 {[%emt 0:00:01]} Rxh4 {[%emt 0:00:00]} 62. f7 {[%emt 0:00:38]} Rf4 {[%emt 0:00:00]} 63. Rxc7 {[%emt 0:00:31]} Rf2+ {[%emt 0:00:00]} 64. Ke1 {[%emt 0:00:33]} Rf4 {[%emt 0:00:00]} 65. b6 {[%emt 0:00:12]} Kd6 {[%emt 0:00:00]} 66. Kd2 {[%emt 0:00:09]} Rf3 {[%emt 0:00:00]} 67. Ke2 {[%emt 0:00:47]} Rf6 {[%emt 0:00:00]} 68. Kd3 {[%emt 0:00:09]} Rf4 {[%emt 0:00:00]} 69. b4 {[%emt 0:00:06]} Rf3+ {[%emt 0:00:00]} 70. Kxd4 {[%emt 0:00:37]} Rf1 {[%emt 0:00:00]} 71. Kc4 {[%emt 0:00:19]} Rf5 {[%emt 0:00:00]} 72. Kb3 {[%emt 0:01:21]} Rf3+ {[%emt 0:00:12]} 73. Ka4 {[%emt 0:00:15]} Rf5 {[%emt 0:00:12]} 74. b5 {[%emt 0:00:20]} Rf1 {[%emt 0:02:21]} 75. Kb3 {[%emt 0:01:08]} Rf5 {[%emt 0:01:01]} 76. Kc3 {[%emt 0:00:25]} Rf3+ {[%emt 0:00:32]} 77. Kd4 {[%emt 0:00:14]} Rf4+ {[%emt 0:00:41]} 78. Ke3 {[%emt 0:00:06]} Rf5 {[%emt 0:00:33]} 79. Ke4 {[%emt 0:00:29]} Rf1 {[%emt 0:01:02]} 80. Rc6+ {[%emt 0:00:06]} Kd7 {[%emt 0:00:41]} 81. b7 {[%emt 0:00:17]} Re1+ {[%emt 0:00:32]} 1-0